bitfinex/quotes_SOLUSD_20250403
["timestamp","ask_amount","ask_price","bid_price","bid_amount"]
[1743686865181,0.03,113.75,113.72,20.50931367]
[1743686865390,0.03,113.75,113.71,20.50931367]
[1743686865715,8.8212,113.75,113.71,20.50931367]
[1743686866010,8.8212,113.75,113.71,29.30331367]
[1743686866207,0.03,113.75,113.72,20.50931367]
[1743686866510,0.03,113.75,113.71,46.50931367]
[1743686867006,0.03,113.75,113.73,20.50931367]
[1743686867812,0.03,113.75,113.73,29.30171367]
[1743686868010,0.03,113.75,113.74,20.50931367]
[1743686868185,0.03,113.75,113.73,29.30171367]
[1743686868383,0.03,113.75,113.74,20.50931367]
[1743686869392,0.03,113.75,113.72,8.7931]
[1743686869589,0.03,113.75,113.73,20.50931367]
[1743686870487,0.03,113.75,113.73,29.30181367]
[1743686870693,0.03,113.75,113.74,20.50931367]
[1743686870879,0.03,113.75,113.74,20.65147524]
[1743686871082,0.03,113.75,113.74,20.93579838]
[1743686871282,0.03,113.75,113.74,20.50931367]
[1743686872709,0.03,113.75,113.74,29.30121367]
[1743686873107,0.03,113.75,113.74,20.50931367]
[1743686873311,0.03,113.75,113.72,8.7935]
[1743686873489,0.03,113.75,113.74,20.50931367]
[1743686873885,0.03,113.75,113.72,8.7935]
[1743686874082,0.03,113.75,113.74,20.50931367]
[1743686874504,0.03,113.75,113.74,29.30121367]
[1743686875810,0.03,113.75,113.74,20.50931367]
[1743686876314,0.03,113.75,113.74,29.30121367]
[1743686877517,0.03,113.75,113.74,29.72769838]
[1743686877719,0.03,113.75,113.74,29.30121367]
[1743686878191,0.03,113.75,113.74,29.72769838]
[1743686878706,0.03,113.75,113.74,29.30121367]
[1743686879217,0.03,113.75,113.74,9.21838471]
[1743686879393,0.03,113.75,113.74,29.72769838]
[1743686879722,0.03,113.75,113.74,29.30121367]
[1743686880408,28.5953,113.82,113.74,29.30121367]
[1743686880409,6.6299,113.82,113.77,26.0]
[1743686880721,6.6299,113.82,113.79,20.50931367]
[1743686881426,6.6299,113.82,113.77,26.0]
[1743686881427,0.03,113.83,113.81,20.50931367]
[1743686881722,0.03,113.83,113.82,20.50931367]
[1743686882223,0.03,113.83,113.81,20.50931367]
[1743686882906,0.03,113.83,113.82,20.50931367]
[1743686883303,0.03,113.83,113.81,29.29571367]
[1743686883726,0.03,113.83,113.81,20.50931367]
[1743686884225,20.50931367,113.82,113.76,1.5445]
[1743686884405,22.12561367,113.82,113.75,18.5107]
[1743686884589,22.12561367,113.82,113.77,20.50931367]
[1743686884790,20.50931367,113.8,113.73,1.66826157]
[1743686885122,39.15896253,113.81,113.76,20.50931367]
[1743686885422,18.64964886,113.81,113.76,20.50931367]
[1743686885630,20.50931367,113.8,113.76,20.50931367]
[1743686885831,20.50931367,113.79,113.74,20.50931367]
[1743686886004,6.5914,113.8,113.76,20.50931367]
[1743686886397,8.7881,113.79,113.76,20.50931367]
[1743686886925,8.7881,113.79,113.77,20.50931367]
[1743686887094,8.7881,113.79,113.76,20.50931367]
[1743686887294,15.3791,113.8,113.77,20.50931367]
[1743686887494,179.79111367,113.82,113.74,8.7919]
[1743686887495,8.7865,113.81,113.79,20.50931367]
[1743686887694,8.7865,113.81,113.78,20.50931367]
[1743686887900,8.49960779,113.81,113.78,20.50931367]
[1743686890533,8.49960779,113.81,113.77,20.50931367]
[1743686891397,50.97532146,113.81,113.76,26.0]
[1743686891607,30.46600779,113.81,113.77,20.50931367]
[1743686892431,8.49960779,113.81,113.78,20.50931367]
[1743686892595,10.4023,113.82,113.78,20.50931367]
[1743686892801,32.3668,113.82,113.75,29.30041367]
[1743686892995,52.87611367,113.82,113.77,20.50931367]
[1743686893431,10.4023,113.82,113.78,20.50931367]
[1743686893729,0.03,113.83,113.81,20.50931367]
[1743686893939,0.03,113.83,113.79,0.42648471]
[1743686893940,0.03,113.83,113.82,20.50931367]
[1743686894837,0.03,113.83,113.82,29.29511367]
[1743686895029,0.03,113.83,113.82,9.21228471]
[1743686895229,0.03,113.83,113.82,29.72159838]
[1743686896939,0.03,113.83,113.82,20.93579838]
[1743686897106,0.03,113.83,113.72,31.2767]
[1743686897307,0.03,113.83,113.79,20.50931367]
[1743686898936,8.815,113.83,113.79,20.50931367]
[1743686899628,29.32431367,113.83,113.78,46.50931367]
[1743686899810,8.815,113.83,113.79,20.50931367]
[1743686900326,29.32431367,113.83,113.78,46.50931367]
[1743686900529,8.815,113.83,113.79,20.50931367]
[1743686900832,29.32431367,113.83,113.78,46.50931367]
[1743686901334,8.815,113.83,113.78,46.50931367]
[1743686901637,30.7775,113.83,113.79,20.50931367]
[1743686901933,0.03,113.83,113.81,20.50931367]
[1743686902116,0.03,113.83,113.82,20.50931367]
[1743686902716,0.03,113.83,113.82,26.0]
[1743686903924,0.03,113.83,113.82,46.50931367]
[1743686904235,0.03,113.83,113.82,26.0]
[1743686907034,0.03,113.83,113.81,0.063]
[1743686907236,0.03,113.83,113.81,46.57231367]
[1743686907737,20.50931367,113.82,113.81,0.063]
[1743686908254,20.53931367,113.83,113.81,0.063]
[1743686908420,0.03,113.83,113.81,0.063]
[1743686908620,20.53931367,113.83,113.81,0.063]
[1743686908827,20.50931367,113.82,113.81,0.063]
[1743686909151,20.50931367,113.82,113.81,0.0001]
[1743686909152,39.3011241,113.82,113.81,0.0001]
[1743686909457,39.58544724,113.82,113.81,0.0001]
[1743686909817,51.877888,113.82,113.81,0.0001]
[1743686910227,8.815,113.83,113.81,0.0001]
[1743686910420,32.80175443,113.82,113.81,0.0001]
[1743686910826,41.58755443,113.82,113.81,0.0001]
[1743686913445,8.7858,113.82,113.81,0.0001]
[1743686913749,41.58755443,113.82,113.81,0.0001]
[1743686915841,60.23720329,113.82,113.81,0.0001]
[1743686916339,60.663688,113.82,113.81,0.0001]
[1743686917634,60.23720329,113.82,113.81,0.0001]
[1743686918027,8.7858,113.82,113.81,0.0001]
[1743686918458,41.58755443,113.82,113.81,0.0001]
[1743686918746,60.23720329,113.82,113.81,0.0001]
[1743686921338,60.663688,113.82,113.81,0.0001]
[1743686923555,255.53544243,113.82,113.81,0.0001]
[1743686924663,265.21544243,113.82,113.81,0.0001]
[1743686925344,0.42648471,113.8,113.74,26.0]
[1743686925544,32.80175443,113.77,113.74,26.0]
[1743686926666,28.32964886,113.81,113.74,26.0]
[1743686926873,32.80175443,113.79,113.74,58.80175443]
[1743686927170,8.7896,113.77,113.74,26.0]
[1743686928659,8.7896,113.77,113.73,67.59445443]
[1743686929269,8.7896,113.77,113.73,58.80175443]
[1743686929473,41.59135443,113.77,113.73,26.0]
[1743686929767,29.30000661,113.77,113.73,26.0]
[1743686931269,8.7896,113.77,113.71,26.0]
[1743686931470,20.51040661,113.75,113.7,20.57340661]
[1743686931861,30.7637,113.77,113.72,26.0]
[1743686932058,29.30000661,113.77,113.72,46.51040661]
[1743686932271,8.7896,113.77,113.72,46.51040661]
[1743686932458,29.30000661,113.77,113.72,46.51040661]
[1743686933669,8.7896,113.77,113.73,20.51040661]
[1743686933974,29.30000661,113.77,113.72,55.30350661]
[1743686934273,20.51040661,113.76,113.72,46.51040661]
[1743686934871,20.51040661,113.76,113.72,26.0]
[1743686935166,20.51040661,113.73,113.7,0.063]
[1743686935541,20.51040661,113.74,113.7,0.063]
[1743686935746,21.9793,113.75,113.7,20.57340661]
[1743686935946,20.51040661,113.74,113.7,0.063]
[1743686936177,51.28250661,113.74,113.7,0.063]
[1743686936352,20.51040661,113.73,113.7,0.063]
[1743686937581,8.7935,113.72,113.7,0.063]
[1743686938083,8.7927,113.73,113.7,0.063]
[1743686938374,20.51040661,113.74,113.7,0.063]
[1743686939564,8.7924,113.74,113.7,20.57340661]
[1743686940287,29.30280661,113.74,113.7,0.063]
[1743686940946,8.7924,113.74,113.7,0.063]
[1743686941344,8.7904,113.76,113.71,20.51040661]
[1743686941541,29.30080661,113.76,113.71,29.30420661]
[1743686941774,29.30080661,113.76,113.71,20.51040661]
[1743686941959,20.51040661,113.74,113.7,26.063]
[1743686942476,8.7904,113.76,113.71,20.51040661]
[1743686942678,8.7904,113.76,113.72,20.51040661]
[1743686942974,8.7899,113.77,113.72,20.51040661]
[1743686943184,8.7892,113.78,113.73,20.51040661]
[1743686943344,8.7892,113.78,113.74,20.51040661]
[1743686943549,8.7881,113.79,113.75,20.51040661]
[1743686943860,8.7881,113.79,113.75,29.30150661]
[1743686944179,8.7876,113.8,113.77,20.51040661]
[1743686944355,8.7865,113.81,113.77,20.51040661]
[1743686944556,8.8161,113.82,113.78,20.51040661]
[1743686944749,0.03,113.82,113.8,20.51040661]
[1743686944943,0.03,113.82,113.8,26.0]
[1743686945270,0.03,113.82,113.8,46.51040661]
[1743686945743,0.03,113.82,113.79,20.51040661]
[1743686946775,0.03,113.83,113.82,19.07613357]
[1743686946953,0.03,113.87,113.86,20.51040661]
[1743686947344,0.03,113.87,113.86,46.51040661]
[1743686948050,0.03,113.94,113.87,0.28432314]
[1743686948244,0.03,113.94,113.92,20.51040661]
[1743686948449,0.03,113.94,113.9,20.51040661]
[1743686948768,20.51040661,113.93,113.89,26.0]
[1743686949156,20.51040661,113.93,113.88,20.51040661]
[1743686949362,20.51040661,113.91,113.86,8.7827]
[1743686949672,41.51509377,113.91,113.86,32.73579377]
[1743686949979,51.38544263,113.9,113.85,32.73579377]
[1743686950157,32.73579377,113.89,113.84,32.73579377]
[1743686950360,32.73579377,113.88,113.83,32.73579377]
[1743686951103,32.73579377,113.88,113.83,41.52069377]
[1743686951245,32.73579377,113.88,113.83,32.73579377]
[1743686951664,32.73579377,113.87,113.82,26.0]
[1743686951879,41.51789377,113.87,113.82,32.73579377]
[1743686952178,32.73579377,113.86,113.82,26.0]
[1743686952382,32.73579377,113.86,113.81,32.73579377]
[1743686952559,8.7821,113.87,113.82,58.73579377]
[1743686952758,41.51789377,113.87,113.82,32.73579377]
[1743686952975,32.73579377,113.86,113.81,32.73579377]
[1743686953375,8.7821,113.87,113.82,58.73579377]
[1743686953376,41.51789377,113.87,113.82,58.73579377]
[1743686953855,18.64964886,113.87,113.82,58.73579377]
[1743686954170,51.38544263,113.87,113.82,32.73579377]
[1743686954481,0.03,113.88,113.84,32.73579377]
[1743686955077,0.03,113.88,113.86,32.73579377]
[1743686955281,0.03,113.88,113.87,32.73579377]
[1743686956703,0.03,113.88,113.85,32.73579377]
[1743686957072,0.03,113.88,113.86,32.73579377]
[1743686957268,0.03,113.88,113.85,26.0]
[1743686957507,0.03,113.88,113.86,32.73579377]
[1743686957796,0.03,113.88,113.85,26.0]
[1743686957797,8.8111,113.88,113.85,26.0]
[1743686957968,41.54689377,113.88,113.84,26.0]
[1743686958370,8.8111,113.88,113.84,58.73579377]
[1743686958591,8.8111,113.88,113.85,32.73579377]
[1743686958786,8.8111,113.88,113.84,58.73579377]
[1743686959286,8.8111,113.88,113.85,32.73579377]
[1743686959495,0.03,113.88,113.85,32.73579377]
[1743686959891,0.03,113.88,113.85,26.0]
[1743686960095,32.73579377,113.87,113.84,26.0]
[1743686960483,51.41544263,113.88,113.84,26.0]
[1743686960988,18.64964886,113.86,113.82,32.73579377]
[1743686961182,32.73579377,113.86,113.81,32.73579377]
[1743686961582,0.42648471,113.87,113.81,32.73579377]
[1743686961784,8.7827,113.86,113.82,41.52149377]
[1743686961995,8.7827,113.86,113.83,32.73579377]
[1743686962498,8.7819,113.87,113.83,32.73579377]
[1743686962999,41.51769377,113.87,113.82,32.73579377]
[1743686963196,8.7819,113.87,113.83,32.73579377]
[1743686963507,41.51769377,113.87,113.82,32.73579377]
[1743686964000,63.47249377,113.87,113.82,32.73579377]
[1743686964580,18.64964886,113.86,113.81,32.73579377]
[1743686964778,51.38544263,113.86,113.81,32.73579377]
[1743686965602,8.7834,113.85,113.81,32.73579377]
[1743686966000,8.7834,113.85,113.79,8.7881]
[1743686966183,8.7834,113.85,113.81,32.73579377]
[1743686966683,8.783,113.86,113.82,58.73579377]
[1743686967197,8.7819,113.87,113.83,32.73579377]
[1743686967402,0.03,113.88,113.86,32.73579377]
[1743686971787,0.03,113.88,113.85,32.73579377]
[1743686972710,0.03,113.88,113.84,32.73579377]
[1743686973093,0.03,113.88,113.83,8.7846]
[1743686973297,32.76579377,113.88,113.82,34.7856]
[1743686973503,32.76579377,113.88,113.83,32.73579377]
[1743686973690,0.03,113.88,113.84,20.46975174]
[1743686973883,8.8114,113.88,113.84,20.46975174]
[1743686974289,8.8114,113.88,113.82,34.7854]
[1743686975006,8.8114,113.88,113.84,20.46975174]
[1743686975513,20.46975174,113.87,113.82,46.46975174]
[1743686975825,20.46975174,113.86,113.79,0.14216157]
[1743686975998,39.1194006,113.87,113.82,20.46975174]
[1743686976788,30.7643,113.88,113.84,20.46975174]
[1743686976992,51.23405174,113.88,113.83,20.46975174]
[1743686977215,39.1194006,113.87,113.82,20.46975174]
[1743686977388,8.7827,113.86,113.79,8.7875]
[1743686977590,8.7827,113.86,113.82,20.46975174]
[1743686978400,8.7827,113.86,113.79,30.7577]
[1743686978611,8.7827,113.86,113.83,20.46975174]
[1743686978810,8.7827,113.86,113.82,20.46975174]
[1743686979315,8.7858,113.82,113.76,418.5103]
[1743686979497,8.7858,113.82,113.78,20.46975174]
[1743686979899,8.7858,113.82,113.79,20.46975174]
[1743686980197,8.7858,113.82,113.78,20.46975174]
[1743686981213,8.7858,113.82,113.79,20.46975174]
[1743686981419,30.7486,113.83,113.79,20.46975174]
[1743686981931,39.1194006,113.82,113.74,0.42648471]
[1743686982222,39.1194006,113.82,113.77,20.46975174]
[1743686982397,39.1194006,113.82,113.74,0.14216157]
[1743686982715,39.1194006,113.82,113.77,20.46975174]
[1743686982930,18.64964886,113.82,113.77,20.46975174]
[1743686983224,18.64964886,113.82,113.78,20.46975174]
[1743686983394,8.7865,113.81,113.78,20.46975174]
[1743686984017,8.7865,113.81,113.74,22.26312314]
[1743686984018,29.25625174,113.81,113.75,8.7908]
[1743686984203,8.7865,113.81,113.78,20.46975174]
[1743686984599,8.7862,113.82,113.78,20.46975174]
[1743686985216,47.9056006,113.82,113.77,20.46975174]
[1743686986023,27.43584886,113.82,113.77,20.46975174]
[1743686986226,8.7842,113.84,113.78,20.46975174]
[1743686986403,29.25395174,113.84,113.79,20.46975174]
[1743686986729,29.25395174,113.84,113.77,8.7894]
[1743686986730,20.46975174,113.83,113.78,20.46975174]
[1743686987103,30.7448,113.84,113.77,8.7894]
[1743686987312,51.21455174,113.84,113.79,20.46975174]
[1743686987724,20.46975174,113.82,113.76,26.0]
[1743686988032,20.46975174,113.82,113.77,20.46975174]
[1743686988417,18.79181043,113.8,113.71,350.8683]
[1743686988636,20.46975174,113.79,113.74,20.46975174]
[1743686988805,18.79181043,113.8,113.75,20.46975174]
[1743686988806,39.1194006,113.8,113.75,20.46975174]
[1743686989011,20.46975174,113.8,113.78,0.063]
[1743686989212,20.46975174,113.82,113.78,0.063]
[1743686989608,8.7865,113.81,113.78,0.063]
[1743686990129,29.25625174,113.81,113.78,0.063]
[1743686991316,29.25495174,113.83,113.78,20.53275174]
[1743686991723,29.25495174,113.83,113.78,29.32155174]
[1743686991934,29.25425174,113.84,113.79,20.46975174]
[1743686992234,8.7845,113.84,113.8,20.46975174]
[1743686992621,8.7845,113.84,113.78,8.8518]
[1743686992622,8.7845,113.84,113.81,20.46975174]
[1743686992823,8.7838,113.85,113.81,20.46975174]
[1743686993029,29.25355174,113.85,113.8,20.46975174]
[1743686994135,8.7819,113.87,113.81,0.14216157]
[1743686994337,29.25165174,113.87,113.8,8.7869]
[1743686994522,20.46975174,113.86,113.8,8.7869]
[1743686994720,20.46975174,113.86,113.81,20.46975174]
[1743686994951,20.46975174,113.86,113.8,8.7869]
[1743686995622,8.7819,113.87,113.82,20.46975174]
[1743686995817,29.25165174,113.87,113.82,20.46975174]
[1743686996017,29.25165174,113.87,113.82,29.25505174]
[1743686996217,29.28105174,113.88,113.83,20.46975174]
[1743686997247,29.28105174,113.88,113.84,20.46975174]
[1743686997845,29.28105174,113.88,113.83,29.25455174]
[1743686998445,20.46975174,113.86,113.79,8.7881]
[1743686998622,20.46975174,113.85,113.8,20.46975174]
[1743686999445,18.67964886,113.88,113.82,20.46975174]
[1743686999647,20.46975174,113.86,113.81,20.46975174]
[1743686999833,20.46975174,113.87,113.82,20.46975174]
[1743687000146,39.1194006,113.86,113.81,20.46975174]
[1743687000442,39.1194006,113.86,113.78,0.063]
[1743687000443,39.1194006,113.83,113.78,0.063]
[1743687000640,20.46975174,113.83,113.78,29.32145174]
[1743687000819,20.46975174,113.82,113.78,0.063]
[1743687001017,20.46975174,113.81,113.78,0.063]
[1743687001447,39.26156217,113.79,113.78,0.063]
[1743687001651,135.7,113.81,113.78,0.063]
[1743687002021,156.16975174,113.81,113.78,0.063]
[1743687002252,20.46975174,113.83,113.78,0.063]
[1743687002548,18.64964886,113.79,113.78,0.063]
[1743687002751,39.1194006,113.79,113.78,0.063]
[1743687002951,39.54588531,113.79,113.78,0.063]
[1743687003454,8.7865,113.82,113.78,0.063]
[1743687003619,8.7853,113.83,113.78,20.53275174]
[1743687003951,32.77686145,113.8,113.78,0.063]
[1743687004447,41.56296145,113.82,113.78,0.063]
[1743687004647,0.14216157,113.85,113.78,0.063]
[1743687004953,32.77686145,113.83,113.78,32.83986145]
[1743687005153,166.4394,113.86,113.79,32.77686145]
[1743687005452,41.55956145,113.86,113.81,32.77686145]
[1743687005620,51.42651031,113.85,113.78,0.063]
[1743687005818,32.77686145,113.84,113.78,32.83986145]
[1743687006023,32.77686145,113.84,113.79,32.77686145]
[1743687006219,51.42651031,113.85,113.8,32.77686145]
[1743687006532,41.56066145,113.85,113.8,32.77686145]
[1743687006731,8.7838,113.85,113.79,32.77686145]
[1743687007048,41.56066145,113.85,113.8,32.77686145]
[1743687007229,41.55986145,113.86,113.8,32.77686145]
[1743687007629,41.55986145,113.86,113.81,32.77686145]
[1743687007864,0.03,113.87,113.83,32.77686145]
[1743687008231,0.03,113.87,113.78,30.8237]
[1743687008232,32.77686145,113.86,113.81,26.0]
[1743687008431,27.46184886,113.87,113.79,8.7878]
[1743687008432,8.7842,113.84,113.79,8.7878]
[1743687008759,8.7842,113.84,113.8,32.77686145]
[1743687009131,8.7842,113.84,113.79,8.7878]
[1743687009334,41.56056145,113.85,113.8,32.77686145]
[1743687009656,60.23861031,113.87,113.82,32.77686145]
[1743687009838,8.8121,113.87,113.82,32.77686145]
[1743687010154,0.03,113.87,113.83,32.77686145]
[1743687010361,0.03,113.87,113.86,41.70172302]
[1743687010536,0.03,113.87,113.86,60.63569502]
[1743687010732,0.03,113.87,113.86,41.98604616]
[1743687011180,0.03,113.87,113.86,60.63569502]
[1743687011363,0.03,113.87,113.83,8.785]
[1743687011659,0.03,113.87,113.86,32.77686145]
[1743687012359,0.03,113.87,113.86,41.98604616]
[1743687012537,0.03,113.87,113.86,60.63569502]
[1743687012939,0.03,113.87,113.86,41.55956145]
[1743687013243,0.03,113.87,113.86,41.84388459]
[1743687013636,0.03,113.87,113.86,41.98604616]
[1743687014258,0.03,113.94,113.89,26.0]
[1743687014451,0.03,113.94,113.93,32.77686145]
[1743687015153,32.80686145,113.94,113.83,30.7475]
[1743687015361,32.77686145,113.9,113.85,32.77686145]
[1743687015532,18.64964886,113.89,113.85,32.77686145]
[1743687015737,32.77686145,113.89,113.84,32.77686145]
[1743687015956,18.79181043,113.91,113.84,32.77686145]
[1743687016130,32.77686145,113.9,113.85,32.77686145]
[1743687016339,19.10613357,113.94,113.87,32.77686145]
[1743687016650,32.77686145,113.89,113.82,8.7858]
[1743687016956,19.07613357,113.92,113.85,32.77686145]
[1743687017151,32.77686145,113.89,113.84,32.77686145]
[1743687017658,32.77686145,113.88,113.83,32.77686145]
[1743687018067,32.77686145,113.86,113.81,0.063]
[1743687018255,32.77686145,113.85,113.81,0.063]
[1743687018562,32.77686145,113.84,113.81,0.063]
[1743687018880,8.7828,113.86,113.81,32.83986145]
[1743687019031,41.55966145,113.86,113.81,0.20516157]
[1743687019234,32.77686145,113.83,113.81,0.063]
[1743687020057,32.77686145,113.82,113.81,0.063]
[1743687020262,18.64964886,113.82,113.81,0.063]
[1743687020449,8.785,113.83,113.81,0.063]
[1743687020645,187.55299502,113.82,113.81,0.063]
[1743687020858,168.47686145,113.82,113.81,0.063]
[1743687021056,187.12651031,113.82,113.81,0.063]
[1743687021260,135.7,113.82,113.81,0.063]
[1743687022266,8.785,113.83,113.81,0.063]
[1743687022475,27.57371043,113.87,113.81,41.62566145]
[1743687022641,32.77686145,113.86,113.81,41.62566145]
[1743687022844,27.57371043,113.87,113.81,41.62566145]
[1743687023043,32.77686145,113.86,113.81,41.62566145]
[1743687023271,135.7,113.92,113.85,32.77686145]
[1743687023446,32.77686145,113.88,113.81,8.8488]
[1743687023645,18.79181043,113.9,113.81,0.063]
[1743687023865,32.77686145,113.87,113.81,32.83986145]
[1743687024067,32.77686145,113.87,113.82,32.77686145]
[1743687024271,0.28432314,113.89,113.81,32.83986145]
[1743687024453,41.56026145,113.86,113.81,41.62626145]
[1743687024659,8.7834,113.86,113.81,8.8494]
[1743687024968,51.42651031,113.87,113.81,8.8494]
[1743687024969,60.20881031,113.87,113.82,32.77686145]
[1743687025177,8.7814,113.88,113.83,32.77686145]
[1743687025478,8.78,113.9,113.86,32.77686145]
[1743687025676,41.55606145,113.91,113.86,32.77686145]
[1743687025876,32.77686145,113.9,113.85,32.77686145]
[1743687026084,51.42651031,113.9,113.84,32.77686145]
[1743687026283,0.17216157,113.94,113.87,32.77686145]
[1743687026457,0.17216157,113.94,113.84,0.28432314]
[1743687026458,41.55416145,113.93,113.88,32.77686145]
[1743687026978,41.55416145,113.93,113.88,41.55776145]
[1743687027179,8.7773,113.93,113.88,32.77686145]
[1743687027363,41.55416145,113.93,113.88,32.77686145]
[1743687027874,32.77686145,113.92,113.87,32.77686145]
[1743687028270,8.7773,113.93,113.88,32.77686145]
[1743687028462,60.23341031,113.94,113.89,32.77686145]
[1743687028669,60.23341031,113.94,113.88,41.55746145]
[1743687029080,27.45654886,113.94,113.89,32.77686145]
[1743687029389,0.03,113.94,113.91,32.77686145]
[1743687029579,8.8065,113.94,113.91,32.77686145]
[1743687029770,0.03,113.94,113.88,30.7335]
[1743687030091,8.8065,113.94,113.9,32.77686145]
[1743687030380,0.03,113.94,113.9,32.77686145]
[1743687030580,0.03,113.94,113.92,32.77686145]
[1743687030787,0.03,113.94,113.93,32.77686145]
[1743687030965,0.03,113.94,113.93,33.20334616]
[1743687031178,32.77686145,114.03,113.96,26.0]
[1743687031370,30.6882,114.05,113.99,32.77686145]
[1743687031574,35.01769227,114.05,113.96,35.6]
[1743687031762,32.77686145,114.04,113.96,35.6]
[1743687031963,32.77686145,114.03,113.98,32.77686145]
[1743687032165,30.6882,114.05,113.98,32.77686145]
[1743687032384,30.6882,114.05,113.96,35.6]
[1743687032385,8.768,114.05,113.97,0.42648471]
[1743687032681,0.03,114.06,114.04,32.77686145]
[1743687033068,0.03,114.06,114.02,9.6]
[1743687033262,0.03,114.06,114.03,32.77686145]
[1743687033473,0.03,114.06,114.02,9.6]
[1743687033789,32.80686145,114.06,114.02,9.6]
[1743687033983,0.03,114.06,114.02,32.77686145]
[1743687034182,0.03,114.06,114.03,9.6]
[1743687034382,4.40098525,114.18,114.06,0.14216157]
[1743687034583,32.77686145,114.17,114.12,32.77686145]
[1743687034784,32.77686145,114.17,114.09,0.42648471]
[1743687034785,157.5897,114.21,114.13,32.77686145]
[1743687035102,8.7565,114.2,114.15,32.77686145]
[1743687035270,8.7558,114.21,114.12,19.07613357]
[1743687035590,8.7558,114.21,114.17,32.77686145]
[1743687035762,264.25054758,114.23,114.17,32.77686145]
[1743687035957,216.01947125,114.23,114.18,0.28432314]
[1743687036202,30.6309,114.27,114.15,36.00648471]
[1743687036362,135.7,114.26,114.16,26.0]
[1743687036558,0.5,114.26,114.14,84.37951536]
[1743687036763,135.7,114.27,114.18,48.79951536]
[1743687036961,14.06154072,114.28,114.18,48.79951536]
[1743687036962,135.7,114.26,114.18,48.79951536]
[1743687037185,145.28,114.28,114.15,0.42648471]
[1743687037385,48.79951536,114.26,114.19,48.79951536]
[1743687037590,30.6292,114.27,114.19,48.79951536]
[1743687037801,18.64964886,114.23,114.16,0.42648471]
[1743687037959,0.03,114.18,114.17,26.0]
[1743687038164,0.03,114.18,114.17,48.79951536]
[1743687038360,18.64964886,114.26,114.16,19.07613357]
[1743687038574,48.79951536,114.24,114.19,48.79951536]
[1743687038776,8.7542,114.23,114.19,48.79951536]
[1743687039092,8.7542,114.23,114.17,17.99655613]
[1743687039093,8.7327,114.25,114.2,48.79951536]
[1743687039294,48.79951536,114.24,114.18,26.0]
[1743687039586,48.79951536,114.24,114.2,17.57007142]
[1743687040067,79.39401536,114.25,114.19,66.36958678]
[1743687040262,48.79951536,114.24,114.19,17.57007142]
[1743687040463,48.79951536,114.22,114.19,17.57007142]
[1743687040663,26.0,114.21,114.2,41.17506524]
[1743687040882,75.22600007,114.21,114.2,6.524e-05]
[1743687041289,74.77951536,114.21,114.2,6.524e-05]
[1743687041489,83.53531536,114.21,114.2,6.524e-05]
[1743687041664,83.53531536,114.21,114.2,41.30880443]
[1743687041862,83.96180007,114.21,114.2,4.43e-06]
[1743687042491,83.53531536,114.21,114.2,4.43e-06]
[1743687042795,30.6405,114.23,114.2,4.43e-06]
[1743687043091,48.79951536,114.21,114.2,4.43e-06]
[1743687043471,67.73348736,114.21,114.2,4.43e-06]
[1743687043665,48.79951536,114.21,114.2,4.43e-06]
[1743687043871,67.73348736,114.21,114.2,4.43e-06]
[1743687044367,67.87564893,114.21,114.2,4.43e-06]
[1743687044769,76.63144893,114.21,114.2,4.43e-06]
[1743687045497,57.55531536,114.21,114.2,4.43e-06]
[1743687046590,48.79951536,114.21,114.2,4.43e-06]
[1743687046895,57.55531536,114.21,114.2,4.43e-06]
[1743687047072,48.79951536,114.21,114.2,4.43e-06]
[1743687047275,57.55531536,114.21,114.2,4.43e-06]
[1743687047594,76.20496422,114.21,114.2,4.43e-06]
[1743687047807,57.55531536,114.21,114.2,4.43e-06]
[1743687047966,76.63144893,114.21,114.2,4.43e-06]
[1743687048368,48.79951536,114.21,114.2,4.43e-06]
[1743687049082,57.55531536,114.21,114.2,4.43e-06]
[1743687049885,57.55531536,114.21,114.2,0.06300443]
[1743687050074,57.58531536,114.21,114.2,0.06300443]
[1743687050288,0.03,114.33,114.31,0.5]
[1743687050468,184.49951536,114.45,114.31,0.5]
[1743687050794,8.7481,114.31,114.23,0.5]
[1743687051003,18.933972,114.3,114.21,10.06]
[1743687051288,48.79951536,114.26,114.21,10.06]